bitfinex-derivatives/quotes_SOLF0:USTF0_20250124
["timestamp","ask_amount","ask_price","bid_price","bid_amount"]
[1737684970305,14.80217163,249.65,249.45,4.0092]
[1737684970502,0.02608119,249.52,249.48,0.02894514]
[1737684970710,14.80217163,249.6,249.48,0.02894514]
[1737684970911,0.02824187,249.52,249.44,1.2583]
[1737684971308,0.02824187,249.52,249.46,0.02695581]
[1737684972004,0.02824187,249.52,249.5,4.0086]
[1737684972813,2.5789,249.66,249.57,4.0074]
[1737684973012,2.5789,249.66,249.5,14.80217163]
[1737684973211,4.0065,249.63,249.51,1.3106]
[1737684973813,0.02785374,249.59,249.56,4.0076]
[1737684974113,0.02785374,249.59,249.55,0.02711233]
[1737684974715,0.02785374,249.59,249.57,4.0073]
[1737684976718,0.02785374,249.59,249.55,0.02711233]
[1737684977418,0.02785374,249.59,249.56,4.0075]
[1737684978221,0.02785374,249.59,249.57,4.0074]
[1737684978416,0.02785374,249.59,249.55,0.02711233]
[1737684979018,1.3508,249.71,249.65,4.0061]
[1737684979424,1.3508,249.71,249.56,1.2468]
[1737684979619,1.3508,249.71,249.63,4.0063]
[1737684979919,8.5535492,249.73,249.56,1.2468]
[1737684980120,1.2429,249.77,249.65,0.02881331]
[1737684980321,2.581,249.83,249.65,0.02881331]
[1737684980517,3.8806,249.83,249.65,0.02881331]
[1737684980823,3.8806,249.83,249.72,0.02725202]
[1737684981123,4.0049,249.73,249.72,0.02725202]
[1737684982319,3.8806,249.83,249.72,0.02725202]
[1737684982520,4.0045,249.76,249.72,0.02725202]
[1737684983025,3.8806,249.83,249.72,0.02725202]
[1737684983225,2.581,249.83,249.72,0.02725202]
[1737684983724,4.0036,249.81,249.75,4.0045]
[1737684984227,4.0036,249.81,249.76,4.0044]
[1737684984622,4.0036,249.81,249.72,0.02725202]
[1737684984821,4.0038,249.8,249.74,4.0046]
[1737684985123,1.2844,249.83,249.72,0.02725202]
[1737684985320,4.0041,249.79,249.72,0.02725202]
[1737684985625,1.2844,249.83,249.72,0.02725202]
[1737684986924,1.2844,249.83,249.77,4.0042]
[1737684987323,1.2844,249.83,249.78,0.0294894]
[1737684987625,1.2818,249.88,249.78,0.0294894]
[1737684988724,4.0038,249.8,249.78,0.0294894]
[1737684989929,4.003,249.85,249.78,4.0334894]
[1737684990130,1.2818,249.88,249.78,0.0294894]
[1737684990728,14.80217163,250.01,249.79,14.80217163]
[1737684990934,17.40747163,250.01,249.8,2.6784]
[1737684991234,2.6053,250.01,249.88,0.02921388]
[1737684991930,1.3084,250.07,249.88,0.02921388]
[1737684992127,1.3042,250.06,249.87,14.80217163]
[1737684992323,4.0001,250.03,249.87,14.80217163]
[1737684992527,4.0001,250.03,249.96,4.0011]
[1737684992728,1.3042,250.06,249.95,0.02600027]
[1737684993826,14.80217163,250.1,249.95,0.02600027]
[1737684994033,1.3042,250.16,249.97,14.80217163]
[1737684994231,1.3042,250.16,250.01,14.80217163]
[1737684994423,1.3042,250.16,250.04,0.02799141]
[1737684994424,3.9986,250.13,250.04,0.02799141]
[1737684994629,1.3042,250.16,250.04,0.02799141]
[1737684995832,3.9994,250.08,250.04,0.02799141]
[1737684996433,1.3042,250.16,250.04,0.02799141]
[1737684996634,14.80217163,250.14,250.04,9.141e-05]
[1737684996836,3.9997,250.06,250.04,9.141e-05]
[1737684997226,1.3042,250.16,250.04,9.141e-05]
[1737684997433,3.9986,250.13,250.04,9.141e-05]
[1737684997731,1.3042,250.16,250.04,9.141e-05]
[1737684997933,0.02808666,250.11,250.04,9.141e-05]
[1737684999036,4.02688666,250.11,250.04,3.99999141]
[1737684999231,0.02808666,250.11,250.04,3.99999141]
[1737684999540,0.02808666,250.11,250.04,9.141e-05]
[1737684999838,14.80217163,250.27,250.04,14.80226304]
[1737685000040,13.61366039,250.22,250.04,14.80217163]
[1737685000938,3.9979,250.17,250.1,0.02862611]
[1737685001138,13.61366039,250.22,250.1,0.02862611]
[1737685002838,3.9979,250.17,250.11,3.9988]
[1737685003540,13.61366039,250.22,250.13,3.9984]
[1737685004541,13.61366039,250.22,250.1,0.02862611]
[1737685005535,3.9985,250.14,250.1,0.02862611]
[1737685005737,13.61366039,250.22,250.1,0.02862611]
[1737685006341,14.80217163,250.18,250.01,4.0003]
[1737685006645,14.80217163,250.18,249.96,14.80217163]
[1737685006844,3.9998,250.05,249.96,14.80217163]
[1737685007237,3.9999,250.04,249.99,4.0006]
[1737685007532,0.02862611,250.03,249.98,0.02658028]
[1737685007830,13.61366039,250.22,250.02,14.80217163]
[1737685008031,13.61366039,250.22,250.06,3.9995]
[1737685008032,3.9988,250.11,250.06,3.9995]
[1737685008236,3.9988,250.11,250.02,14.80217163]
[1737685008842,3.9988,250.11,250.04,0.02871966]
[1737685009141,3.9988,250.11,250.05,3.9997]
[1737685009835,3.9988,250.11,250.04,0.02871966]
[1737685010037,13.61366039,250.22,250.04,0.02871966]
[1737685010238,13.61366039,250.22,250.02,14.80217163]
[1737685010636,13.61366039,250.22,250.1,0.02881115]
[1737685011338,3.9976,250.19,250.13,3.9984]
[1737685012645,3.9966,250.25,250.19,3.9975]
[1737685012840,14.80217163,250.33,250.13,14.80217163]
[1737685013046,14.80217163,250.33,250.16,0.02701146]
[1737685013237,1.3293,250.32,250.13,14.80217163]
[1737685013440,1.3293,250.32,250.22,0.02605265]
[1737685013942,3.9961,250.28,250.22,0.02605265]
[1737685014143,1.3293,250.32,250.22,0.02605265]
[1737685014340,3.996,250.29,250.23,3.9968]
[1737685014542,2.6845,250.35,250.22,0.02605265]
[1737685014846,3.9958,250.3,250.22,0.02605265]
[1737685015043,2.6845,250.35,250.22,0.02605265]
[1737685016142,3.9959,250.29,250.22,0.02605265]
[1737685017347,3.9959,250.29,250.23,3.9969]
[1737685018844,2.6845,250.35,250.22,0.02605265]
[1737685019546,3.9956,250.32,250.22,4.02305265]
[1737685019740,2.6845,250.35,250.22,4.02305265]
[1737685019941,2.6845,250.35,250.22,0.02605265]
[1737685020345,2.6845,250.35,250.23,3.9968]
[1737685020844,2.6845,250.35,250.22,0.02605265]
[1737685021050,15.53656673,250.34,250.22,0.02605265]
[1737685021250,0.73443731,250.33,250.22,0.02605265]
[1737685021549,3.9968,250.24,250.22,0.02605265]
[1737685021945,14.80217163,250.34,250.22,0.02605265]
[1737685022951,2.6845,250.35,250.22,0.02605265]
[1737685023551,3.9954,250.33,250.27,3.9962]
[1737685023851,2.6845,250.35,250.17,1.2501]
[1737685024049,3.64,250.45,250.28,7.9922]
[1737685024348,65.02770921,250.63,250.31,14.80217163]
[1737685024555,65.02770921,250.63,250.34,0.02799828]
[1737685024744,65.02770921,250.63,250.35,14.80217163]
[1737685024945,14.80217163,250.62,250.42,0.02969353]
[1737685025248,65.02770921,250.63,250.44,14.80217163]
[1737685025452,65.02770921,250.63,250.48,14.80217163]
[1737685025652,3.9922,250.53,250.48,0.0273812]
[1737685025848,20.22114739,250.59,250.48,0.0273812]
[1737685026048,20.22114739,250.59,250.48,8.12e-05]
[1737685026251,3.9926,250.5,250.48,8.12e-05]
[1737685029457,18.09037163,250.49,250.26,14.80217163]
[1737685029645,18.09037163,250.49,250.23,1.3753]
[1737685029953,3.9956,250.32,250.23,1.3753]
[1737685030153,18.09037163,250.49,250.23,1.3753]
[1737685030555,0.02695706,250.39,250.33,3.257e-05]
[1737685030856,14.82912869,250.39,250.15,14.80217163]
[1737685031051,0.6637,250.38,250.15,14.80217163]
[1737685031853,3.9966,250.25,250.24,0.02686751]
[1737685033148,3.9966,250.25,250.24,6.751e-05]
[1737685045165,14.80217163,250.25,250.09,2.5031]
[1737685045365,0.6685,250.28,250.09,2.5031]
[1737685045668,3.84,250.31,250.09,2.5031]
[1737685046270,3.9979,250.17,250.09,2.5031]
[1737685046665,0.0271195,250.16,250.1,0.02757851]
[1737685047069,4.0251195,250.16,250.11,3.9987]
[1737685047671,0.0271195,250.16,250.1,0.02757851]
[1737685047967,0.0271195,250.16,250.1,7.851e-05]
[1737685048866,3.9988,250.11,250.1,7.851e-05]
[1737685063085,4.0017,249.93,249.9,2.6356]
[1737685063277,14.80217163,250.04,249.9,1.2867]
[1737685063782,9.22206233,250.01,249.84,9.22206233]
[1737685064179,0.02549631,249.95,249.9,0.02817083]
[1737685064785,9.22206233,250.09,249.92,9.22206233]
[1737685064989,9.22206233,250.13,249.96,9.22206233]
[1737685065182,3.9989,250.11,249.96,9.22206233]
[1737685065487,9.22206233,250.17,250.0,13.22256233]
[1737685065986,0.02847091,250.11,250.06,0.02529446]
[1737685067978,15.96086547,250.28,250.06,0.02529446]
[1737685068181,2.5676,250.29,250.09,15.96086547]
[1737685068578,15.96086547,250.28,250.05,18.60226547]
[1737685068788,15.96086547,250.24,250.05,2.6414]
[1737685069080,0.03001898,250.17,250.12,0.03014492]
[1737685069588,3.9983,250.15,250.12,0.03014492]
[1737685069886,0.03001898,250.17,250.12,0.03014492]
[1737685070089,3.9981,250.16,250.12,0.03014492]
[1737685070789,3.9982,250.15,250.12,0.03014492]
[1737685070991,0.03001898,250.17,250.12,0.03014492]
[1737685071189,3.9984,250.14,250.12,0.03014492]
[1737685071587,0.03001898,250.17,250.12,0.03014492]
[1737685073093,0.03001898,250.17,250.12,4.02874492]
[1737685074386,15.96086547,250.28,250.12,0.03014492]
[1737685074587,15.96086547,250.33,250.1,15.96086547]
[1737685074989,15.96086547,250.37,250.14,15.96086547]
[1737685075496,3.9955,250.32,250.21,3.9971]
[1737685075693,0.02421688,250.28,250.23,0.02714892]
[1737685076294,3.9952,250.34,250.26,3.9964]
[1737685076486,1.3154,250.42,250.22,1.3567]
[1737685076487,15.96086547,250.42,250.27,1.3263]
[1737685077194,15.96086547,250.46,250.3,3.9957]
[1737685077499,15.96086547,250.46,250.35,0.02982735]
[1737685077695,3.9949,250.36,250.35,0.02982735]
[1737685077995,1.2917,250.49,250.35,0.02982735]
[1737685078394,3.9934,250.45,250.35,0.02982735]
[1737685078591,1.2917,250.49,250.35,0.02982735]
[1737685079095,15.96086547,250.42,250.35,2.735e-05]
[1737685079397,3.9948,250.36,250.35,2.735e-05]
[1737685079997,15.96086547,250.37,250.22,1.3567]
[1737685080697,3.9962,250.28,250.22,1.3567]
[1737685080900,15.96086547,250.37,250.22,1.3567]
[1737685081197,3.9958,250.31,250.22,1.3567]
[1737685081396,0.02720625,250.32,250.27,0.02572166]
[1737685081697,3.9945,250.38,250.28,3.996]
[1737685081899,0.0287314,250.32,250.29,1.2621]
[1737685082199,15.96086547,250.42,250.29,1.2621]
[1737685082394,0.02982735,250.33,250.29,1.2621]
[1737685082595,15.96086547,250.47,250.29,1.2621]
[1737685083195,1.2917,250.49,250.29,1.2621]
[1737685083499,15.96086547,250.52,250.32,15.96086547]
[1737685083702,3.993,250.48,250.38,3.9944]
[1737685083905,1.2869,250.56,250.32,15.96086547]
[1737685084092,1.2869,250.56,250.4,0.02945729]
[1737685084294,0.7478,250.63,250.37,15.96086547]
[1737685084499,0.7478,250.63,250.45,0.03066149]
[1737685084900,3.9925,250.51,250.45,0.03066149]
[1737685085400,0.7478,250.63,250.45,0.03066149]
[1737685085401,3.9917,250.56,250.46,3.9931]
[1737685085598,17.22376547,250.64,250.45,0.03066149]
[1737685086194,3.9931,250.47,250.45,0.03066149]
[1737685086395,17.22376547,250.64,250.45,0.03066149]
[1737685087696,15.96086547,250.74,250.48,15.96086547]
[1737685087902,15.96086547,250.74,250.53,15.96086547]
[1737685088304,15.96086547,250.74,250.58,0.02860026]
[1737685088701,15.96086547,250.74,250.63,0.02820169]
[1737685089406,1.2968,250.75,250.63,0.02820169]
[1737685090002,3.9902,250.65,250.63,0.02820169]
[1737685091400,3.9902,250.65,250.63,1.69e-06]
[1737685092810,15.96086547,250.66,250.39,1.3366]
[1737685093007,15.96086547,250.61,250.4,2.6999]
[1737685093202,3.9937,250.43,250.4,2.6999]
[1737685093409,1.2954,250.6,250.4,2.6999]
[1737685093910,0.02779151,250.53,250.47,0.02576281]
[1737685094111,0.02779151,250.53,250.47,6.281e-05]
[1737685094412,3.9929,250.48,250.47,6.281e-05]
[1737685097414,0.02779151,250.53,250.47,6.281e-05]
[1737685098615,3.9928,250.49,250.47,6.281e-05]
[1737685104718,19.95366547,250.49,250.47,6.281e-05]
[1737685105319,3.9928,250.49,250.47,6.281e-05]
[1737685106514,3.9929,250.48,250.47,6.281e-05]
[1737685107620,15.96086547,250.48,250.27,1.3334]
[1737685107819,1.3755,250.47,250.27,1.3334]
[1737685108220,15.96086547,250.43,250.27,1.3334]
[1737685108629,0.02881373,250.38,250.32,0.02598528]
[1737685109721,4.02331373,250.38,250.32,0.02598528]
[1737685110630,3.9947,250.37,250.32,0.02598528]
[1737685111130,15.96086547,250.37,250.06,3.80500614]
[1737685111322,17.23316547,250.37,250.13,3.917]
[1737685111527,15.96086547,250.32,250.13,3.917]
[1737685111926,0.7462,250.36,250.13,3.917]
[1737685112126,0.02894888,250.25,250.2,0.03001093]
[1737685112327,3.9971,250.22,250.13,3.917]
[1737685112524,0.02819625,250.22,250.2,0.02907506]
[1737685112723,0.02819625,250.22,250.2,4.02637506]
[1737685112930,0.7462,250.36,250.2,0.02907506]
[1737685113234,1.2723,250.37,250.18,15.96086547]
[1737685113428,3.9958,250.3,250.21,3.9971]
[1737685113731,1.2723,250.37,250.18,15.96086547]
[1737685114231,0.02953655,250.3,250.25,0.02979961]
[1737685116035,3.996,250.29,250.25,0.02979961]
[1737685116233,0.02953655,250.3,250.25,0.02979961]
[1737685116634,17.23316547,250.37,250.25,0.02979961]
[1737685116836,1.3686,250.41,250.25,0.02979961]
[1737685117033,1.3686,250.41,250.21,15.96086547]
[1737685117830,0.02221698,250.34,250.28,0.02907793]
[1737685122439,3.9941,250.41,250.28,0.02907793]
[1737685122737,3.9941,250.41,250.27,4.0367]
[1737685122931,1.2459,250.49,250.27,4.0367]
[1737685123137,3.9944,250.39,250.27,4.0367]
[1737685123639,3.9944,250.39,250.3,0.02938979]
[1737685124137,3.9944,250.39,250.31,3.9955]
[1737685124434,3.9944,250.39,250.3,0.02938979]
[1737685124640,1.2459,250.49,250.3,0.02938979]
[1737685124837,3.9952,250.34,250.27,4.0367]
[1737685125033,15.96086547,250.48,250.27,4.0367]
[1737685125240,3.9949,250.36,250.29,3.9959]
[1737685125539,15.96086547,250.48,250.3,0.02534357]
[1737685125741,15.96086547,250.48,250.27,4.0367]
[1737685125930,15.96086547,250.48,250.36,0.02887612]
[1737685126334,3.9946,250.37,250.36,7.612e-05]
[1737685129636,3.997,250.23,250.17,1.3585]
[1737685130238,1.2914,250.36,250.17,1.3585]
[1737685130741,3.9974,250.2,250.13,2.6848]
[1737685130941,0.02887612,250.29,250.13,2.6848]
[1737685131138,15.96086547,250.33,250.14,0.02802242]
[1737685131339,3.9972,250.22,250.13,2.6848]
[1737685131645,0.02887612,250.24,250.21,0.02597392]
[1737685131840,0.02887612,250.24,250.16,0.02661042]
[1737685134048,0.02887612,250.24,250.21,3.9972]
[1737685134545,0.02887612,250.24,250.16,0.02661042]
[1737685134749,3.9957,250.31,250.16,0.02661042]
[1737685134946,3.9957,250.31,250.16,15.98747589]
[1737685135146,15.96086547,250.38,250.16,15.98747589]
[1737685135346,15.96086547,250.44,250.21,15.96086547]
[1737685135648,3.9949,250.36,250.29,3.9959]
[1737685135946,15.96086547,250.44,250.3,0.02833695]
[1737685136140,3.9942,250.4,250.3,0.02833695]
[1737685136338,15.96086547,250.44,250.31,3.9956]
[1737685136546,15.96086547,250.44,250.3,0.02833695]
[1737685137849,2.6041,250.47,250.3,0.02833695]
[1737685138047,2.6041,250.47,250.27,2.5736]
[1737685138248,3.9937,250.44,250.35,3.9949]
[1737685138548,2.6041,250.47,250.35,3.9949]
[1737685139146,3.9936,250.44,250.35,3.9949]
[1737685139347,2.6041,250.47,250.34,0.0306482]
[1737685140250,3.9942,250.4,250.34,0.0306482]
[1737685140442,2.6041,250.47,250.34,0.0306482]
[1737685140748,1.2549,250.47,250.34,0.0306482]
[1737685141550,15.96086547,250.51,250.34,0.0306482]
[1737685141752,15.96086547,250.55,250.31,15.96086547]
[1737685141951,3.9934,250.45,250.4,4.0202235]
[1737685142153,15.96086547,250.55,250.4,0.0261235]
[1737685142352,15.96086547,250.42,250.28,1.3769]
[1737685142553,3.9955,250.32,250.28,1.3769]
[1737685142755,15.96086547,250.42,250.28,1.3769]
[1737685143557,0.0261235,250.38,250.32,0.02730397]
[1737685143751,0.0261235,250.38,250.16,15.96086547]
[1737685143752,15.96086547,250.36,250.19,111.36321259]
[1737685143953,15.96086547,250.31,250.19,111.36321259]
[1737685144253,3.9971,250.22,250.19,111.36321259]
[1737685144557,15.96086547,250.31,250.19,111.36321259]
[1737685144954,0.02637223,250.28,250.22,0.03064891]
[1737685147351,3.9965,250.26,250.22,0.03064891]
[1737685147549,0.02637223,250.28,250.22,0.03064891]
[1737685147963,3.9968,250.24,250.22,0.03064891]
[1737685149060,3.9974,250.2,250.08,1.3419]
[1737685149957,15.96086547,250.26,250.08,1.3419]
[1737685150159,15.96086547,250.21,250.14,0.02995465]
[1737685150365,0.02644381,250.2,250.14,0.02995465]
[1737685151260,3.9978,250.18,250.14,0.02995465]
[1737685151465,0.02644381,250.2,250.14,0.02995465]
[1737685152363,0.02644381,250.2,250.16,3.9979]
[1737685152567,0.02644381,250.2,250.14,0.02995465]
[1737685152973,0.02644381,250.2,250.18,3.9976]
[1737685153366,0.02644381,250.2,250.14,0.02995465]
[1737685153567,0.02644381,250.2,250.15,3.998]
[1737685153763,0.02644381,250.2,250.14,0.02995465]
[1737685155071,0.02644381,250.2,250.16,3.9979]
[1737685155371,0.02644381,250.2,250.14,0.02995465]
[1737685156070,3.9975,250.19,250.14,4.02815465]
[1737685156771,0.02644381,250.2,250.14,4.02815465]
[1737685158269,4.02384381,250.2,250.14,4.02815465]
[1737685158770,0.02644381,250.2,250.14,0.02995465]
[1737685159473,3.9977,250.18,250.14,0.02995465]
[1737685159772,0.02644381,250.2,250.14,0.02995465]
[1737685160465,0.02644381,250.2,250.16,3.998]
[1737685160664,4.02384381,250.2,250.14,0.02995465]
[1737685160865,0.02644381,250.2,250.14,0.02995465]
[1737685161666,1.3025,250.3,250.19,3.9975]
[1737685161869,1.3025,250.3,250.14,0.02995465]
[1737685161870,1.3025,250.3,250.15,2.556]
[1737685162062,1.2623,250.4,250.16,1.2422]
[1737685162770,0.02783719,250.29,250.25,3.9965]
[1737685163270,0.02783719,250.29,250.23,0.02915391]
[1737685164166,0.02783719,250.29,250.23,4.02585391]
[1737685164366,0.02783719,250.29,250.23,0.02915391]
[1737685165971,3.9966,250.25,250.23,0.02915391]
[1737685168780,3.9967,250.24,250.23,0.02915391]
[1737685169477,0.02783719,250.29,250.23,0.02915391]
[1737685171181,3.9963,250.27,250.23,0.02915391]
[1737685171382,0.02783719,250.29,250.23,0.02915391]
[1737685171777,3.9961,250.28,250.23,4.02605391]
[1737685172479,0.02783719,250.29,250.23,0.02915391]
[1737685172780,4.02383719,250.29,250.24,3.9967]
[1737685172974,0.02783719,250.29,250.23,0.02915391]
[1737685173880,3.9967,250.24,250.23,0.02915391]
[1737685174586,0.02783719,250.29,250.23,0.02915391]
[1737685177185,0.02783719,250.29,250.23,4.02605391]
[1737685177186,3.9961,250.28,250.23,4.02605391]
[1737685177683,0.02783719,250.29,250.23,4.02605391]
[1737685177684,0.02783719,250.29,250.23,0.02915391]
[1737685178383,3.9962,250.28,250.23,0.02915391]
[1737685178687,0.02783719,250.29,250.23,0.02915391]
[1737685180495,0.02783719,250.29,250.25,3.9965]
[1737685180788,0.02783719,250.29,250.23,0.02915391]
[1737685181586,4.02383719,250.29,250.23,0.02915391]
[1737685181888,0.02783719,250.29,250.23,0.02915391]
[1737685182288,3.9966,250.25,250.23,0.02915391]
[1737685182789,0.02783719,250.29,250.23,0.02915391]
[1737685184290,4.02373719,250.29,250.25,3.9966]
[1737685184590,0.02783719,250.29,250.23,0.02915391]
[1737685186093,0.02783719,250.29,250.27,3.9962]
[1737685186592,0.02783719,250.29,250.24,1.3171]
[1737685186985,0.02783719,250.29,250.23,0.02915391]
[1737685187887,3.9965,250.26,250.23,0.02915391]
[1737685188095,0.02783719,250.29,250.23,0.02915391]
[1737685188890,3.9967,250.24,250.23,0.02915391]
[1737685189098,9.99165832,250.29,250.12,121.32703372]
[1737685189301,9.96382113,250.25,250.12,111.36321259]
[1737685189598,9.96382113,250.25,250.08,18.2737889]
[1737685190392,0.0293801,250.19,250.14,0.028108]
[1737685191691,3.9981,250.16,250.14,0.028108]
[1737685195900,4.0002,250.04,250.0,1.2429]
[1737685196700,15.96064344,250.14,250.0,1.2429]
[1737685197103,3.9993,250.08,250.04,0.02781805]
[1737685197301,0.0258482,250.1,250.04,0.02781805]
[1737685197607,0.0258482,250.1,250.08,3.9992]
[1737685198605,0.0258482,250.1,250.04,0.02781805]
[1737685198800,4.0251482,250.1,250.05,4.0]
[1737685199007,0.0258482,250.1,250.05,4.0]
[1737685200106,0.0258482,250.1,250.04,0.02781805]
[1737685200501,1.3029,250.21,250.04,0.02781805]
[1737685200700,1.3029,250.21,249.99,15.96064344]
[1737685200903,1.3029,250.21,249.99,208.96064344]
[1737685201305,15.96064344,250.15,249.99,193.0]
[1737685201501,3.9991,250.11,250.03,4.0003]
[1737685201813,0.02903878,250.1,250.04,0.02576097]
[1737685202112,0.02903878,250.1,250.08,3.9995]
[1737685203008,0.02903878,250.1,250.04,4.02596097]
[1737685203211,0.02903878,250.1,250.04,0.02576097]
[1737685203512,4.0,250.06,250.04,0.02576097]
[1737685204311,4.0,250.06,250.04,6.097e-05]
[1737685207813,4.0015,249.96,249.91,1.299]
[1737685208118,15.96064344,250.03,249.87,1.2809]
[1737685208415,4.0015,249.96,249.87,1.2809]
[1737685208616,15.96064344,250.03,249.87,1.2809]
[1737685208816,15.96064344,250.03,249.88,4.0026]
[1737685209008,0.02947443,249.97,249.93,0.0290189]
[1737685210124,4.0016,249.95,249.93,1.89e-05]
[1737685210415,15.96064344,249.95,249.79,1.3537]
[1737685210823,15.96064344,249.95,249.8,4.004]
[1737685211115,15.96064344,249.95,249.79,1.3537]
[1737685211316,4.0039,249.81,249.75,5.3412]
[1737685211517,15.96064344,249.87,249.75,1.3365]
[1737685211725,0.02762789,249.8,249.76,0.0295671]
[1737685212019,9.23318577,249.8,249.74,16.89959962]
[1737685212223,9.26210396,249.8,249.76,0.02785485]
[1737685212619,4.0045,249.77,249.76,0.02785485]
[1737685214228,4.0055,249.71,249.63,1.3541]
[1737685214722,14.77954854,249.77,249.63,1.3541]
[1737685214924,4.0051,249.73,249.63,1.3541]
[1737685215318,14.77954854,249.77,249.63,1.3541]
[1737685215525,0.03070767,249.71,249.66,0.02969652]
[1737685218727,0.03070767,249.71,249.69,4.0055]
[1737685219421,0.03070767,249.71,249.67,4.0057]
[1737685219630,0.03070767,249.71,249.66,0.02969652]
[1737685219931,4.0057,249.68,249.66,0.02969652]
[1737685223129,14.77954854,249.7,249.56,1.2748]
[1737685223326,4.0065,249.64,249.57,4.0074]
[1737685223728,4.006,249.67,249.57,4.0074]
[1737685223929,16.08534854,249.7,249.57,4.0074]
[1737685224133,16.08534854,249.7,249.6,4.0069]
[1737685224333,4.0062,249.65,249.61,0.02828298]
[1737685224534,14.80622322,249.66,249.61,0.02828298]
[1737685224829,14.80622322,249.66,249.56,1.2748]
[1737685225828,14.80622322,249.66,249.59,0.02527958]
[1737685226229,4.007,249.6,249.59,0.02527958]
[1737685227425,4.0076,249.57,249.5,5.2989]
[1737685227927,14.77954854,249.58,249.39,193.0]
[1737685228130,14.77954854,249.58,249.4,3.8682]
[1737685228433,14.77954854,249.58,249.44,4.0094]
[1737685228627,0.03028715,249.51,249.47,0.02678937]
[1737685230031,0.03028715,249.51,249.48,4.0089]
[1737685230333,0.03028715,249.51,249.47,0.02678937]
[1737685231836,0.03028715,249.51,249.48,4.0088]
[1737685232233,0.03028715,249.51,249.47,0.02678937]
[1737685232433,14.77954854,249.5,249.3,1.3185]
[1737685232625,14.77954854,249.5,249.31,1.278]
[1737685233136,4.0097,249.43,249.37,4.0105]
[1737685233335,4.0097,249.43,249.31,1.278]
[1737685233838,0.02806773,249.39,249.37,4.0106]
[1737685234029,4.0095,249.45,249.31,1.278]
[1737685234228,14.77954854,249.46,249.31,1.278]
[1737685234433,4.0107,249.37,249.35,0.02737232]
[1737685235442,4.03870656,249.39,249.35,0.02737232]
[1737685235933,13.2219,249.57,249.35,0.02737232]
[1737685235934,9.26411482,249.46,249.35,0.02737232]
[1737685236236,9.26411482,249.5,249.35,193.0]
[1737685236628,9.26411482,249.5,249.36,1.3661]
[1737685236838,9.26411482,249.46,249.36,1.3661]
[1737685237336,0.02730879,249.43,249.39,0.02637808]
[1737685237731,0.02730879,249.43,249.4,4.0101]
[1737685238438,4.03710879,249.43,249.39,0.02637808]
[1737685238737,9.26411482,249.42,249.39,0.02637808]
[1737685239440,4.0101,249.41,249.39,0.02637808]
[1737685239634,14.82682328,249.4,249.27,1.3671]
[1737685240036,14.82682328,249.44,249.27,1.3671]
[1737685240741,14.82682328,249.48,249.27,1.3671]
[1737685240940,0.02671265,249.4,249.35,0.02839257]
[1737685241342,4.0088,249.49,249.42,4.0097]
[1737685241543,14.82682328,249.52,249.27,194.3671]
[1737685241738,14.82682328,249.48,249.27,194.3671]
[1737685242044,4.0103,249.4,249.27,194.3671]
[1737685242242,4.0103,249.4,249.28,1.2767]
[1737685242443,0.02839753,249.38,249.33,0.03033025]
[1737685242743,0.02839753,249.38,249.35,4.0109]
[1737685242944,0.02839753,249.38,249.33,0.03033025]
[1737685243442,18.83572328,249.48,249.33,0.03033025]
[1737685243738,18.83572328,249.48,249.28,1.2767]
[1737685243943,18.83572328,249.48,249.43,4.0096]
[1737685244143,4.0088,249.49,249.43,4.0096]
[1737685244438,0.03011879,249.48,249.44,0.0277309]
[1737685245043,0.03011879,249.48,249.45,4.0093]
[1737685245437,0.03011879,249.48,249.44,0.0277309]
[1737685246140,4.0092,249.46,249.44,0.0277309]
[1737685247341,4.0094,249.45,249.44,0.0277309]
[1737685247539,14.85694207,249.48,249.28,1.2767]
[1737685247743,14.82682328,249.44,249.28,1.2767]
[1737685248638,0.03003018,249.4,249.35,0.02822951]
[1737685249046,14.82682328,249.53,249.35,0.02822951]
[1737685249247,14.82682328,249.53,249.3,14.82682328]
[1737685249841,4.0092,249.47,249.36,4.0107]
[1737685250046,4.0092,249.47,249.3,14.82682328]
[1737685250257,0.03033669,249.44,249.39,0.02846996]
[1737685250950,4.0085,249.51,249.39,0.02846996]
[1737685251354,4.0085,249.51,249.34,14.82682328]
[1737685252050,4.0085,249.51,249.45,4.0092]
[1737685252546,0.02675657,249.5,249.46,0.02909205]
[1737685252744,0.02675657,249.5,249.38,14.82682328]
[1737685252745,14.82682328,249.61,249.39,2.5592]
[1737685252952,0.02585599,249.5,249.46,0.02678001]
[1737685253157,4.0084,249.51,249.45,4.0093]
[1737685253351,0.02618755,249.5,249.46,0.03033832]